[Event "Titled Tuesday Blitz June 6 Late 2023"]
[White "Rustemov, Alexander"]
[Black "Matinian, Nikita"]
[WhiteFideId "4119002"]
[BlackFideId "24129100"]
[WhiteElo "2841"]
[BlackElo "2422"]
[Result "0-1"]
[Round "11"]
[TimeControl "180+2"]
[Date "2023.06.07"]
[WhiteClock "0:00:03"]
[BlackClock "0:00:33"]
[Board "15"]

1. d4 {[%clk 0:03:00]}  g6 {[%clk 0:03:00]} 2. c4 {[%clk 0:03:00]}  Bg7 {[%clk 0:02:59]} 3. Nf3 {[%clk 0:03:00]}  d6 {[%clk 0:03:00]} 4. g3 {[%clk 0:03:00]}  Nf6 {[%clk 0:02:59]} 5. Bg2 {[%clk 0:03:00]}  O-O {[%clk 0:03:00]} 6. Nc3 {[%clk 0:03:00]}  c6 {[%clk 0:02:58]} 7. O-O {[%clk 0:02:59]}  Bf5 {[%clk 0:02:57]} 8. Nh4 {[%clk 0:02:56]}  Be6 {[%clk 0:02:57]} 9. d5 {[%clk 0:02:56]}  cxd5 {[%clk 0:02:55]} 10. cxd5 {[%clk 0:02:57]}  Bd7 {[%clk 0:02:54]} 11. Be3 {[%clk 0:02:57]}  b5 {[%clk 0:02:53]} 12. a3 {[%clk 0:02:56]}  a5 {[%clk 0:02:36]} 13. Nf3 {[%clk 0:02:49]}  Na6 {[%clk 0:02:35]} 14. Nd4 {[%clk 0:02:42]}  b4 {[%clk 0:02:35]} 15. axb4 {[%clk 0:02:38]}  Nxb4 {[%clk 0:02:36]} 16. Nc6 {[%clk 0:02:31]}  Bxc6 {[%clk 0:02:36]} 17. dxc6 {[%clk 0:02:31]}  d5 {[%clk 0:02:31]} 18. Bf4 {[%clk 0:02:07]}  e6 {[%clk 0:02:22]} 19. c7 {[%clk 0:02:04]}  Qe7 {[%clk 0:02:14]} 20. e4 {[%clk 0:01:58]}  e5 {[%clk 0:02:04]} 21. exd5 {[%clk 0:01:58]}  exf4 {[%clk 0:01:49]} 22. d6 {[%clk 0:01:58]}  Qd7 {[%clk 0:01:49]} 23. Bxa8 {[%clk 0:01:57]}  Rxa8 {[%clk 0:01:50]} 24. Re1 {[%clk 0:01:51]}  Bf8 {[%clk 0:01:35]} 25. Qf3 {[%clk 0:01:50]}  Rc8 {[%clk 0:01:28]} 26. Qxf4 {[%clk 0:01:26]}  Qxd6 {[%clk 0:01:27]} 27. Nb5 {[%clk 0:01:15]}  Qxf4 {[%clk 0:01:22]} 28. gxf4 {[%clk 0:01:15]}  Nc2 {[%clk 0:01:05]} 29. Kg2 {[%clk 0:00:42]}  Nxe1+ {[%clk 0:00:55]} 30. Rxe1 {[%clk 0:00:41]}  Nd5 {[%clk 0:00:56]} 31. Rc1 {[%clk 0:00:40]}  Nxf4+ {[%clk 0:00:50]} 32. Kf3 {[%clk 0:00:39]}  Ne6 {[%clk 0:00:51]} 33. Ke4 {[%clk 0:00:37]}  Bh6 {[%clk 0:00:50]} 34. Rc4 {[%clk 0:00:33]}  Bf4 {[%clk 0:00:49]} 35. Kd5 {[%clk 0:00:10]}  Bxc7 {[%clk 0:00:42]} 36. Na7 {[%clk 0:00:05]}  Rd8+ {[%clk 0:00:42]} 37. Kc6 {[%clk 0:00:05]}  Bxh2 {[%clk 0:00:42]} 38. Kb5 {[%clk 0:00:04]}  Rd5+ {[%clk 0:00:34]} 39. Ka4 {[%clk 0:00:04]}  Rd4 {[%clk 0:00:32]} 40. Rxd4 {[%clk 0:00:03]}  Nxd4 {[%clk 0:00:33]} 41. Kxa5 {[%clk 0:00:03]}  h5 {[%clk 0:00:34]} 42. Nb5 {[%clk 0:00:02]}  Nxb5 {[%clk 0:00:33]} 43. Kxb5 {[%clk 0:00:03]}  h4 {[%clk 0:00:33]} 0-1


[Site "https://www.chess.com"]

[Event "Titled Tuesday Blitz June 6 Late 2023"]
[White "Goryachkina, Aleksandra"]
[Black "Bryakin, Mikhail"]
[WhiteFideId "4147103"]
[BlackFideId "4165314"]
[WhiteElo "2471"]
[BlackElo "2464"]
[Result "1-0"]
[Round "11"]
[TimeControl "180+2"]
[Date "2023.06.07"]
[WhiteClock "0:00:17"]
[BlackClock "0:00:53"]
[Board "16"]

1. e4 {[%clk 0:03:00]}  Nf6 {[%clk 0:02:58]} 2. e5 {[%clk 0:02:56]}  Nd5 {[%clk 0:02:59]} 3. d4 {[%clk 0:02:54]}  d6 {[%clk 0:02:59]} 4. Nf3 {[%clk 0:02:53]}  Bg4 {[%clk 0:02:58]} 5. exd6 {[%clk 0:02:51]}  cxd6 {[%clk 0:02:53]} 6. Be2 {[%clk 0:02:51]}  Nc6 {[%clk 0:02:52]} 7. O-O {[%clk 0:02:50]}  e6 {[%clk 0:02:52]} 8. c4 {[%clk 0:02:49]}  Nf6 {[%clk 0:02:50]} 9. d5 {[%clk 0:02:49]}  exd5 {[%clk 0:02:45]} 10. cxd5 {[%clk 0:02:48]}  Bxf3 {[%clk 0:02:46]} 11. gxf3 {[%clk 0:02:22]}  Ne5 {[%clk 0:02:41]} 12. Bb5+ {[%clk 0:02:20]}  Ned7 {[%clk 0:02:41]} 13. Re1+ {[%clk 0:02:18]}  Be7 {[%clk 0:02:42]} 14. Qe2 {[%clk 0:02:16]}  Kf8 {[%clk 0:02:41]} 15. Nc3 {[%clk 0:02:08]}  a6 {[%clk 0:02:37]} 16. Bd3 {[%clk 0:02:02]}  Ne5 {[%clk 0:02:37]} 17. Bf4 {[%clk 0:02:01]}  Ng6 {[%clk 0:02:26]} 18. Bg3 {[%clk 0:02:01]}  Nh5 {[%clk 0:02:24]} 19. Qe4 {[%clk 0:01:46]}  Nxg3 {[%clk 0:02:22]} 20. hxg3 {[%clk 0:01:42]}  Bf6 {[%clk 0:02:22]} 21. f4 {[%clk 0:01:29]}  h5 {[%clk 0:02:22]} 22. Qb4 {[%clk 0:01:25]}  Qd7 {[%clk 0:02:08]} 23. Bxg6 {[%clk 0:01:22]}  fxg6 {[%clk 0:02:09]} 24. Ne4 {[%clk 0:01:23]}  Be7 {[%clk 0:02:09]} 25. Ng5 {[%clk 0:01:18]}  Bxg5 {[%clk 0:02:04]} 26. fxg5 {[%clk 0:01:19]}  Kg8 {[%clk 0:02:00]} 27. Re6 {[%clk 0:01:18]}  Kh7 {[%clk 0:02:00]} 28. Qxd6 {[%clk 0:01:16]}  Qf7 {[%clk 0:02:01]} 29. Re7 {[%clk 0:01:06]}  Qf5 {[%clk 0:02:01]} 30. Qd7 {[%clk 0:00:56]}  Qxg5 {[%clk 0:01:51]} 31. Rxg7+ {[%clk 0:00:54]}  Kh6 {[%clk 0:01:52]} 32. Re1 {[%clk 0:00:45]}  Rad8 {[%clk 0:01:46]} 33. Qxb7 {[%clk 0:00:44]}  Rxd5 {[%clk 0:01:11]} 34. Ree7 {[%clk 0:00:39]}  Rd1+ {[%clk 0:01:11]} 35. Kh2 {[%clk 0:00:33]}  Qf6 {[%clk 0:01:12]} 36. Rh7+ {[%clk 0:00:28]}  Rxh7 {[%clk 0:01:12]} 37. Rxh7+ {[%clk 0:00:28]}  Kg5 {[%clk 0:01:13]} 38. Rf7 {[%clk 0:00:22]}  Qd6 {[%clk 0:00:58]} 39. Qf3 {[%clk 0:00:19]}  Rd2 {[%clk 0:00:52]} 40. Qe3+ {[%clk 0:00:19]}  Kg4 {[%clk 0:00:50]} 41. Rf4+ {[%clk 0:00:19]}  Kg5 {[%clk 0:00:51]} 42. Rd4+ {[%clk 0:00:16]}  Kf6 {[%clk 0:00:50]} 43. Rxd6+ {[%clk 0:00:16]}  Rxd6 {[%clk 0:00:51]} 44. Qf4+ {[%clk 0:00:16]}  Ke6 {[%clk 0:00:51]} 45. Kg2 {[%clk 0:00:16]}  Rd5 {[%clk 0:00:52]} 46. Qe4+ {[%clk 0:00:17]}  Re5 {[%clk 0:00:52]} 47. Qxg6+ {[%clk 0:00:17]}  Kd5 {[%clk 0:00:53]} 48. Qxa6 {[%clk 0:00:17]}  Re6 {[%clk 0:00:53]} 49. Qxe6+ {[%clk 0:00:17]} 1-0


[Site "https://www.chess.com"]

[Event "Titled Tuesday Blitz June 6 Late 2023"]
[White "Fernandez Guillen, Ernesto J."]
[Black "Fiorito, Francisco"]
[WhiteFideId "3512428"]
[BlackFideId "180165"]
[WhiteElo "2434"]
[BlackElo "2319"]
[Result "1/2-1/2"]
[Round "11"]
[TimeControl "180+2"]
[Date "2023.06.07"]
[WhiteClock "0:00:04"]
[BlackClock "0:00:03"]
[Board "17"]

1. e4 {[%clk 0:03:00]}  e5 {[%clk 0:02:59]} 2. Nf3 {[%clk 0:03:00]}  Nf6 {[%clk 0:02:59]} 3. d4 {[%clk 0:03:01]}  Nxe4 {[%clk 0:02:56]} 4. dxe5 {[%clk 0:03:00]}  d5 {[%clk 0:02:56]} 5. Bd3 {[%clk 0:03:00]}  Nc5 {[%clk 0:02:55]} 6. O-O {[%clk 0:03:01]}  Be7 {[%clk 0:02:55]} 7. h3 {[%clk 0:02:57]}  O-O {[%clk 0:02:53]} 8. Nc3 {[%clk 0:02:49]}  c6 {[%clk 0:02:53]} 9. Re1 {[%clk 0:02:47]}  Nxd3 {[%clk 0:02:51]} 10. cxd3 {[%clk 0:02:48]}  Na6 {[%clk 0:02:50]} 11. Ne2 {[%clk 0:02:47]}  Nc5 {[%clk 0:02:49]} 12. Ng3 {[%clk 0:02:47]}  h6 {[%clk 0:02:44]} 13. d4 {[%clk 0:02:46]}  Ne6 {[%clk 0:02:39]} 14. Be3 {[%clk 0:02:43]}  Re8 {[%clk 0:02:39]} 15. Qd2 {[%clk 0:02:42]}  Bf8 {[%clk 0:02:39]} 16. Rac1 {[%clk 0:02:41]}  Nc7 {[%clk 0:02:33]} 17. a3 {[%clk 0:02:38]}  a5 {[%clk 0:02:32]} 18. Nh2 {[%clk 0:02:32]}  Qh4 {[%clk 0:02:29]} 19. Qd3 {[%clk 0:02:20]}  a4 {[%clk 0:02:10]} 20. Nf3 {[%clk 0:02:02]}  Qd8 {[%clk 0:02:06]} 21. Kh2 {[%clk 0:02:01]}  g6 {[%clk 0:01:39]} 22. Qd2 {[%clk 0:01:58]}  Kh7 {[%clk 0:01:39]} 23. Ng1 {[%clk 0:01:58]}  Ne6 {[%clk 0:01:27]} 24. f4 {[%clk 0:01:58]}  Ng7 {[%clk 0:01:27]} 25. N1e2 {[%clk 0:01:55]}  h5 {[%clk 0:01:26]} 26. Bf2 {[%clk 0:01:53]}  h4 {[%clk 0:01:24]} 27. Nf1 {[%clk 0:01:52]}  Nf5 {[%clk 0:01:25]} 28. Ne3 {[%clk 0:01:53]}  Nxe3 {[%clk 0:01:01]} 29. Qxe3 {[%clk 0:01:54]}  Bf5 {[%clk 0:01:01]} 30. Ng1 {[%clk 0:01:54]}  Be4 {[%clk 0:01:00]} 31. Nf3 {[%clk 0:01:54]}  Bxf3 {[%clk 0:01:00]} 32. Qxf3 {[%clk 0:01:55]}  Be7 {[%clk 0:01:00]} 33. f5 {[%clk 0:01:56]}  Bg5 {[%clk 0:01:00]} 34. Rc2 {[%clk 0:01:22]}  Qd7 {[%clk 0:01:00]} 35. f6 {[%clk 0:01:16]}  Qf5 {[%clk 0:00:55]} 36. Qxf5 {[%clk 0:01:16]}  gxf5 {[%clk 0:00:55]} 37. Be3 {[%clk 0:01:16]}  Rg8 {[%clk 0:00:42]} 38. Bxg5 {[%clk 0:01:14]}  Rxg5 {[%clk 0:00:43]} 39. Rf1 {[%clk 0:01:15]}  Rag8 {[%clk 0:00:40]} 40. Rf4 {[%clk 0:01:15]}  Rh5 {[%clk 0:00:37]} 41. Rcf2 {[%clk 0:01:11]}  Kg6 {[%clk 0:00:37]} 42. b3 {[%clk 0:00:54]}  axb3 {[%clk 0:00:23]} 43. Rb2 {[%clk 0:00:54]}  Ra8 {[%clk 0:00:17]} 44. Rxb3 {[%clk 0:00:54]}  b5 {[%clk 0:00:17]} 45. Rc3 {[%clk 0:00:50]}  Ra6 {[%clk 0:00:18]} 46. Rf2 {[%clk 0:00:48]}  Rg5 {[%clk 0:00:18]} 47. Rfc2 {[%clk 0:00:47]}  Ra4 {[%clk 0:00:17]} 48. Rd2 {[%clk 0:00:31]}  Ra6 {[%clk 0:00:13]} 49. Rdd3 {[%clk 0:00:26]}  f4 {[%clk 0:00:13]} 50. Rf3 {[%clk 0:00:25]}  Rg3 {[%clk 0:00:14]} 51. Kg1 {[%clk 0:00:20]}  Kf5 {[%clk 0:00:10]} 52. Kf2 {[%clk 0:00:17]}  Ke4 {[%clk 0:00:09]} 53. Rcd3 {[%clk 0:00:15]}  Ra8 {[%clk 0:00:06]} 54. Rxg3 {[%clk 0:00:12]}  hxg3+ {[%clk 0:00:07]} 55. Ke2 {[%clk 0:00:12]}  b4 {[%clk 0:00:05]} 56. axb4 {[%clk 0:00:11]}  Ra2+ {[%clk 0:00:06]} 57. Rd2 {[%clk 0:00:12]}  Rxd2+ {[%clk 0:00:06]} 58. Kxd2 {[%clk 0:00:12]}  f3 {[%clk 0:00:04]} 59. e6 {[%clk 0:00:09]}  fxg2 {[%clk 0:00:05]} 60. e7 {[%clk 0:00:09]}  g1=Q {[%clk 0:00:04]} 61. e8=Q+ {[%clk 0:00:10]}  Kxd4 {[%clk 0:00:05]} 62. Qe2 {[%clk 0:00:09]}  Qf2 {[%clk 0:00:05]} 63. h4 {[%clk 0:00:08]}  Qf4+ {[%clk 0:00:03]} 64. Kc2 {[%clk 0:00:07]}  Qxf6 {[%clk 0:00:03]} 65. Qd3+ {[%clk 0:00:06]}  Ke5 {[%clk 0:00:03]} 66. Qxg3+ {[%clk 0:00:07]}  Qf4 {[%clk 0:00:03]} 67. Qc3+ {[%clk 0:00:07]}  d4 {[%clk 0:00:03]} 68. Qxc6 {[%clk 0:00:07]}  Qxh4 {[%clk 0:00:03]} 69. Qc7+ {[%clk 0:00:06]}  Kf5 {[%clk 0:00:03]} 70. Qxf7+ {[%clk 0:00:06]}  Ke4 {[%clk 0:00:02]} 71. Qe6+ {[%clk 0:00:06]}  Kf4 {[%clk 0:00:02]} 72. Kd3 {[%clk 0:00:06]}  Qd8 {[%clk 0:00:02]} 73. b5 {[%clk 0:00:06]}  Qh8 {[%clk 0:00:01]} 74. Qe4+ {[%clk 0:00:05]}  Kg5 {[%clk 0:00:02]} 75. Qxd4 {[%clk 0:00:06]}  Qb8 {[%clk 0:00:02]} 76. Kc4 {[%clk 0:00:04]}  Kf5 {[%clk 0:00:02]} 77. Qd7+ {[%clk 0:00:05]}  Ke5 {[%clk 0:00:02]} 78. Kc5 {[%clk 0:00:05]}  Qf8+ {[%clk 0:00:02]} 79. Kc6 {[%clk 0:00:06]}  Qf3+ {[%clk 0:00:03]} 80. Kb6 {[%clk 0:00:06]}  Qe3+ {[%clk 0:00:03]} 81. Kb7 {[%clk 0:00:06]}  Qf3+ {[%clk 0:00:03]} 82. Qc6 {[%clk 0:00:06]}  Qf2 {[%clk 0:00:03]} 83. b6 {[%clk 0:00:06]}  Kd4 {[%clk 0:00:04]} 84. Qd7+ {[%clk 0:00:05]}  Kc5 {[%clk 0:00:04]} 85. Qc7+ {[%clk 0:00:05]}  Kb5 {[%clk 0:00:04]} 86. Ka7 {[%clk 0:00:06]}  Qg1 {[%clk 0:00:04]} 87. Qd7+ {[%clk 0:00:05]}  Kc5 {[%clk 0:00:04]} 88. Qf5+ {[%clk 0:00:05]}  Kc6 {[%clk 0:00:04]} 89. Qe6+ {[%clk 0:00:06]}  Kb5 {[%clk 0:00:04]} 90. Qe5+ {[%clk 0:00:06]}  Kc6 {[%clk 0:00:04]} 91. Qc7+ {[%clk 0:00:06]}  Kb5 {[%clk 0:00:04]} 92. Ka8 {[%clk 0:00:05]}  Qg2+ {[%clk 0:00:03]} 93. Ka7 {[%clk 0:00:04]}  Qg1 {[%clk 0:00:03]} 1/2-1/2


[Site "https://www.chess.com"]

[Event "Titled Tuesday Blitz June 6 Late 2023"]
[White "Bitoon, Richard"]
[Black "Maksimovic, Bojan"]
[WhiteFideId "5201110"]
[BlackFideId "14408120"]
[WhiteElo "2374"]
[BlackElo "2457"]
[Result "1-0"]
[Round "11"]
[TimeControl "180+2"]
[Date "2023.06.07"]
[WhiteClock "0:01:15"]
[BlackClock "0:00:01"]
[Board "18"]

1. e4 {[%clk 0:03:00]}  c5 {[%clk 0:02:59]} 2. c3 {[%clk 0:03:00]}  d5 {[%clk 0:02:58]} 3. exd5 {[%clk 0:03:01]}  Qxd5 {[%clk 0:02:58]} 4. d4 {[%clk 0:03:02]}  Nf6 {[%clk 0:02:59]} 5. Nf3 {[%clk 0:03:03]}  e6 {[%clk 0:02:59]} 6. Na3 {[%clk 0:03:03]}  Nc6 {[%clk 0:02:59]} 7. Nb5 {[%clk 0:03:03]}  Qd8 {[%clk 0:02:59]} 8. dxc5 {[%clk 0:03:04]}  Bxc5 {[%clk 0:02:54]} 9. Qxd8+ {[%clk 0:03:05]}  Kxd8 {[%clk 0:02:54]} 10. b4 {[%clk 0:03:06]}  Bb6 {[%clk 0:02:50]} 11. Nd6 {[%clk 0:03:05]}  Ke7 {[%clk 0:02:47]} 12. Nc4 {[%clk 0:03:05]}  Nd5 {[%clk 0:02:37]} 13. b5 {[%clk 0:03:00]}  Nb8 {[%clk 0:01:52]} 14. Ba3+ {[%clk 0:03:00]}  Kf6 {[%clk 0:01:52]} 15. Nd6 {[%clk 0:02:56]}  Nxc3 {[%clk 0:01:19]} 16. Bb2 {[%clk 0:02:55]}  Ke7 {[%clk 0:01:13]} 17. Bxc3 {[%clk 0:02:33]}  Kxd6 {[%clk 0:01:13]} 18. Bxg7 {[%clk 0:02:12]}  Ba5+ {[%clk 0:01:12]} 19. Ke2 {[%clk 0:02:12]}  Rg8 {[%clk 0:01:11]} 20. Bf6 {[%clk 0:02:04]}  Nd7 {[%clk 0:01:09]} 21. Rd1+ {[%clk 0:02:00]}  Kc7 {[%clk 0:01:09]} 22. Bh4 {[%clk 0:02:00]}  a6 {[%clk 0:01:09]} 23. Ng5 {[%clk 0:01:40]}  axb5 {[%clk 0:00:37]} 24. Bg3+ {[%clk 0:01:26]}  Kd8 {[%clk 0:00:35]} 25. Nxf7+ {[%clk 0:01:26]}  Ke7 {[%clk 0:00:35]} 26. Nd6 {[%clk 0:01:25]}  Bb4 {[%clk 0:00:35]} 27. Bh4+ {[%clk 0:01:20]}  Nf6 {[%clk 0:00:18]} 28. Ne4 {[%clk 0:01:17]}  Rxa2+ {[%clk 0:00:14]} 29. Ke3 {[%clk 0:01:16]}  Ra3+ {[%clk 0:00:09]} 30. Rd3 {[%clk 0:01:15]}  Rg5 {[%clk 0:00:01]} 31. Bxg5 {[%clk 0:01:15]} 1-0


[Site "https://www.chess.com"]

[Event "Titled Tuesday Blitz June 6 Late 2023"]
[White "Najer, Evgeniy"]
[Black "WindWhistler11"]
[WhiteFideId "4118987"]
[WhiteElo "2545"]
[BlackElo "2583"]
[Result "1-0"]
[Round "11"]
[TimeControl "180+2"]
[Date "2023.06.07"]
[WhiteClock "0:01:08"]
[BlackClock "0:00:06"]
[Board "19"]

1. d4 {[%clk 0:03:00]}  Nf6 {[%clk 0:02:58]} 2. c4 {[%clk 0:02:59]}  e6 {[%clk 0:02:57]} 3. Nf3 {[%clk 0:02:59]}  c5 {[%clk 0:02:55]} 4. d5 {[%clk 0:02:58]}  exd5 {[%clk 0:02:56]} 5. cxd5 {[%clk 0:02:59]}  Bd6 {[%clk 0:02:57]} 6. Nc3 {[%clk 0:02:58]}  O-O {[%clk 0:02:57]} 7. Bg5 {[%clk 0:02:57]}  Re8 {[%clk 0:02:57]} 8. e3 {[%clk 0:02:56]}  h6 {[%clk 0:02:45]} 9. Bh4 {[%clk 0:02:52]}  Bf8 {[%clk 0:02:29]} 10. d6 {[%clk 0:02:48]}  Re6 {[%clk 0:02:24]} 11. Bc4 {[%clk 0:02:48]}  Rxd6 {[%clk 0:02:19]} 12. Qb3 {[%clk 0:02:45]}  Re6 {[%clk 0:02:13]} 13. O-O {[%clk 0:02:41]}  Nc6 {[%clk 0:02:10]} 14. Bxe6 {[%clk 0:02:38]}  fxe6 {[%clk 0:02:09]} 15. Ne4 {[%clk 0:02:36]}  g5 {[%clk 0:02:00]} 16. Nxf6+ {[%clk 0:02:28]}  Qxf6 {[%clk 0:02:01]} 17. Bg3 {[%clk 0:02:28]}  d5 {[%clk 0:01:58]} 18. h4 {[%clk 0:02:28]}  g4 {[%clk 0:01:55]} 19. Nh2 {[%clk 0:02:22]}  Qg6 {[%clk 0:01:38]} 20. f3 {[%clk 0:02:17]}  c4 {[%clk 0:01:33]} 21. Qd1 {[%clk 0:02:11]}  gxf3 {[%clk 0:01:26]} 22. Qxf3 {[%clk 0:02:06]}  Bc5 {[%clk 0:01:23]} 23. h5 {[%clk 0:01:59]}  Qg7 {[%clk 0:01:19]} 24. Ng4 {[%clk 0:01:57]}  Bd7 {[%clk 0:01:07]} 25. Bf4 {[%clk 0:01:35]}  e5 {[%clk 0:01:07]} 26. Qxd5+ {[%clk 0:01:31]}  Kh8 {[%clk 0:01:03]} 27. Nxe5 {[%clk 0:01:26]}  Bxe3+ {[%clk 0:00:51]} 28. Bxe3 {[%clk 0:01:22]}  Nxe5 {[%clk 0:00:38]} 29. Bd4 {[%clk 0:01:21]}  Re8 {[%clk 0:00:33]} 30. Rae1 {[%clk 0:01:12]}  Nf3+ {[%clk 0:00:33]} 31. Rxf3 {[%clk 0:01:10]}  Rxe1+ {[%clk 0:00:06]} 32. Kf2 {[%clk 0:01:08]} 1-0


[Site "https://www.chess.com"]

[Event "Titled Tuesday Blitz June 6 Late 2023"]
[White "Keymer, Vincent"]
[Black "Domingo Nunez, Ruben"]
[WhiteFideId "12940690"]
[BlackFideId "22245570"]
[WhiteElo "2669"]
[BlackElo "2404"]
[Result "1-0"]
[Round "11"]
[TimeControl "180+2"]
[Date "2023.06.07"]
[WhiteClock "0:01:35"]
[BlackClock "0:00:25"]
[Board "21"]

1. a3 {[%clk 0:03:00]}  h6 {[%clk 0:02:56]} 2. c4 {[%clk 0:02:58]}  f5 {[%clk 0:02:55]} 3. b4 {[%clk 0:02:58]}  g5 {[%clk 0:02:55]} 4. Bb2 {[%clk 0:02:58]}  Nf6 {[%clk 0:02:56]} 5. Bxf6 {[%clk 0:02:56]}  exf6 {[%clk 0:02:56]} 6. e3 {[%clk 0:02:56]}  Kf7 {[%clk 0:02:56]} 7. d4 {[%clk 0:02:54]}  c6 {[%clk 0:02:49]} 8. Bd3 {[%clk 0:02:51]}  d5 {[%clk 0:02:48]} 9. Ne2 {[%clk 0:02:44]}  dxc4 {[%clk 0:02:47]} 10. Bxc4+ {[%clk 0:02:44]}  Kg7 {[%clk 0:02:47]} 11. Ng3 {[%clk 0:02:41]}  Bd6 {[%clk 0:02:39]} 12. Nh5+ {[%clk 0:02:41]}  Kg6 {[%clk 0:02:40]} 13. Bd3 {[%clk 0:02:41]}  Kf7 {[%clk 0:02:14]} 14. Nc3 {[%clk 0:02:26]}  Na6 {[%clk 0:02:14]} 15. Qc2 {[%clk 0:02:25]}  Qd7 {[%clk 0:02:05]} 16. O-O {[%clk 0:02:22]}  Nc7 {[%clk 0:02:04]} 17. f4 {[%clk 0:02:20]}  Ne8 {[%clk 0:01:48]} 18. Rae1 {[%clk 0:02:13]}  g4 {[%clk 0:01:24]} 19. Ne2 {[%clk 0:02:11]}  Bf8 {[%clk 0:01:08]} 20. Qa2+ {[%clk 0:02:02]}  Ke7 {[%clk 0:01:08]} 21. Neg3 {[%clk 0:01:55]}  Nd6 {[%clk 0:01:07]} 22. e4 {[%clk 0:01:52]}  Kd8 {[%clk 0:01:02]} 23. Nxf6 {[%clk 0:01:51]}  Qe6 {[%clk 0:00:58]} 24. Qxe6 {[%clk 0:01:45]}  Bxe6 {[%clk 0:00:59]} 25. e5 {[%clk 0:01:45]}  Nb5 {[%clk 0:00:58]} 26. d5 {[%clk 0:01:45]}  Bc8 {[%clk 0:00:52]} 27. Bxb5 {[%clk 0:01:43]}  cxb5 {[%clk 0:00:52]} 28. e6 {[%clk 0:01:38]}  Be7 {[%clk 0:00:53]} 29. Nfh5 {[%clk 0:01:38]}  a5 {[%clk 0:00:25]} 30. Nxf5 {[%clk 0:01:38]}  Ra6 {[%clk 0:00:23]} 31. Nxe7 {[%clk 0:01:34]}  Kxe7 {[%clk 0:00:24]} 32. f5 {[%clk 0:01:35]}  Kd6 {[%clk 0:00:24]} 33. f6 {[%clk 0:01:34]}  axb4 {[%clk 0:00:25]} 34. axb4 {[%clk 0:01:35]} 1-0


[Site "https://www.chess.com"]

[Event "Titled Tuesday Blitz June 6 Late 2023"]
[White "Pakleza, Zbigniew"]
[Black "reevecanada"]
[WhiteFideId "1119290"]
[WhiteElo "2410"]
[BlackElo "2609"]
[Result "1-0"]
[Round "11"]
[TimeControl "180+2"]
[Date "2023.06.07"]
[WhiteClock "0:00:09"]
[BlackClock "0:00:19"]
[Board "24"]

1. d4 {[%clk 0:03:00]}  d5 {[%clk 0:02:58]} 2. Bf4 {[%clk 0:03:00]}  Nf6 {[%clk 0:02:59]} 3. e3 {[%clk 0:03:01]}  e6 {[%clk 0:02:58]} 4. Nd2 {[%clk 0:03:01]}  Bd6 {[%clk 0:02:59]} 5. Bg3 {[%clk 0:03:01]}  c6 {[%clk 0:02:58]} 6. Ngf3 {[%clk 0:03:01]}  Qc7 {[%clk 0:02:58]} 7. Ne5 {[%clk 0:03:01]}  Nbd7 {[%clk 0:02:58]} 8. f4 {[%clk 0:03:02]}  c5 {[%clk 0:02:57]} 9. c3 {[%clk 0:03:02]}  a6 {[%clk 0:02:57]} 10. Bd3 {[%clk 0:03:01]}  b5 {[%clk 0:02:57]} 11. O-O {[%clk 0:03:01]}  b4 {[%clk 0:02:58]} 12. Rc1 {[%clk 0:03:00]}  Qb6 {[%clk 0:02:57]} 13. Kh1 {[%clk 0:02:55]}  a5 {[%clk 0:02:56]} 14. Ndf3 {[%clk 0:02:27]}  Ne4 {[%clk 0:02:49]} 15. Be1 {[%clk 0:02:27]}  f6 {[%clk 0:02:48]} 16. Nc4 {[%clk 0:02:19]}  dxc4 {[%clk 0:02:25]} 17. Bxe4 {[%clk 0:02:19]}  Rb8 {[%clk 0:02:25]} 18. f5 {[%clk 0:02:06]}  exf5 {[%clk 0:02:21]} 19. Bxf5 {[%clk 0:02:07]}  O-O {[%clk 0:01:41]} 20. Be6+ {[%clk 0:02:07]}  Kh8 {[%clk 0:01:38]} 21. Bxc4 {[%clk 0:02:08]}  cxd4 {[%clk 0:01:38]} 22. exd4 {[%clk 0:01:54]}  bxc3 {[%clk 0:01:37]} 23. bxc3 {[%clk 0:01:51]}  Qc6 {[%clk 0:01:34]} 24. Bd3 {[%clk 0:01:31]}  Nb6 {[%clk 0:01:31]} 25. c4 {[%clk 0:01:29]}  Bg4 {[%clk 0:01:28]} 26. c5 {[%clk 0:01:26]}  Bf4 {[%clk 0:01:25]} 27. cxb6 {[%clk 0:00:45]}  Qxc1 {[%clk 0:01:22]} 28. Qxc1 {[%clk 0:00:42]}  Bxc1 {[%clk 0:01:23]} 29. Bg3 {[%clk 0:00:36]}  Rxb6 {[%clk 0:00:20]} 30. Rxc1 {[%clk 0:00:33]}  Bxf3 {[%clk 0:00:21]} 31. gxf3 {[%clk 0:00:33]}  Rd8 {[%clk 0:00:21]} 32. Bc7 {[%clk 0:00:14]}  Rc8 {[%clk 0:00:18]} 33. Bf5 {[%clk 0:00:14]}  Rbb8 {[%clk 0:00:16]} 34. Bxc8 {[%clk 0:00:12]}  Rxc8 {[%clk 0:00:17]} 35. Bf4 {[%clk 0:00:10]}  Kg8 {[%clk 0:00:18]} 36. Rxc8+ {[%clk 0:00:10]}  Kf7 {[%clk 0:00:19]} 37. d5 {[%clk 0:00:09]} 1-0


[Site "https://www.chess.com"]